[Event "FIDE WY-U16 Olympiad 2022"]
[Site "Nakhchivan"]
[Date "2022.10.05"]
[Round "4.19"]
[White "Castillo Beitia, Ashley Alexandra"]
[Black "Manon, Reja Neer"]
[Result "0-1"]
[ECO "E88"]
[WhiteElo "1674"]
[BlackElo "2107"]
[Annotator "TA"]
[PlyCount "92"]
[EventDate "2022.10.02"]
[EventType "team-tourn"]
[EventCountry "AZE"]
[SourceTitle "playchess.com"]
[Source "ChessBase"]
[SourceQuality "1"]
[WhiteTeam "Panama"]
[BlackTeam "Bangladesh"]
[WhiteTeamCountry "PAN"]
[BlackTeamCountry "BAN"]
[TimeControl "40/5400+30:1800+30"]

{[%evp 18,92,46,42,52,25,43,2,71,70,82,34,12,0,-16,-4,0,-9,-12,-20,-17,-39,-38,-29,-40,-55,-31,-98,-85,-97,-93,-125,-136,-205,-146,-179,-170,-185,-90,-333,-337,-329,-341,-337,-328,-299,-206,-197,-227,-589,-510,-481,-339,-325,-301,-332,-323,-618,-610,-592,-605,-605,-606,-580,-600,-590,-574,-570,-547,-693,-704,-890,-886,-861,-787,-914,-957]} 1. d4 {[%emt 0:00:03]} Nf6 {[%emt 0:00:14]} 2. c4 {[%emt 0:00:07]} g6 {[%emt 0:00:23]} 3. Nc3 {[%emt 0:00:08]} Bg7 {[%emt 0:00:04]} 4. e4 {[%emt 0:00:08]} d6 {[%emt 0:00:04]} 5. f3 {[%emt 0:00:25]} O-O {[%emt 0:00:05]} 6. Be3 {[%emt 0:00:44]} e5 {[%emt 0:00:02]} 7. d5 {[%emt 0:00:09]} c6 {[%emt 0:00:03]} 8. Qd2 {[%emt 0:00:46]} cxd5 {[%emt 0:00:07]} 9. cxd5 {[%emt 0:00:07]} a6 {[%emt 0:00:03]} 10. g4 {[%emt 0:01:54]} h5 {[%emt 0:00:04] E88: King's Indian: Sämisch: 6...e5 7 d5 c6.} 11. h3 {[%emt 0:02:27]} (11. g5 $5 {[%cal Rg5f6]} Nh7 12. h4 $14) 11... Nbd7 {[%emt 0:01:42]} 12. Bd3 {[%emt 0:06:37]} Nh7 {[%emt 0:07:32] [#]} (12... b5 $11 {keeps the balance.}) 13. gxh5 $146 {[%emt 0:08:19]} ({Predecessor:} 13. O-O-O h4 14. Nge2 Nc5 15. Bc2 b5 16. Kb1 b4 17. Na4 Qa5 18. Nxc5 dxc5 19. Bd3 {½-½ (52) Schleifer,M (2345)-Goldenberg,D (2255) Defi 1997}) 13... Qh4+ {[%emt 0:01:26]} 14. Bf2 {[%emt 0:05:11]} (14. Qf2 $16 Qxh5 15. O-O-O) 14... Qxh5 $14 {[%emt 0:00:34]} 15. O-O-O {[%emt 0:04:08]} Bh6 {[%emt 0:09:02]} 16. Be3 {[%emt 0:00:16]} Bxe3 {[%emt 0:00:13]} 17. Qxe3 {[%emt 0:00:18]} Qh4 {[%emt 0:00:05]} 18. Nge2 {[%emt 0:11:24]} b5 {[%emt 0:02:57]} 19. a3 {[%emt 0:03:36]} Rb8 {[%emt 0:02:22]} 20. b4 $1 {[%emt 0:13:20]} Nb6 {[%emt 0:07:18]} 21. Kb2 {[%emt 0:04:44]} Bd7 {[%emt 0:01:56]} 22. Kb3 {[%emt 0:03:44]} ({White should try} 22. f4 $15) 22... Rfc8 $17 {[%emt 0:07:34]} 23. Rdf1 {[%emt 0:04:32]} a5 {[%emt 0:10:13] Black is more active.} 24. f4 {[%emt 0:03:57]} Nc4 {[%emt 0:31:32]} 25. Qc1 {[%emt 0:10:22]} (25. Bxc4 $17 bxc4+ 26. Kc2) 25... Nf6 {[%emt 0:04:09]} 26. Rf3 {[%emt 0:03:27]} Qh5 $36 {[%emt 0:03:51][%mdl 2048] Keeping White busy.} 27. Rg3 {[%emt 0:02:22]} exf4 {[%emt 0:01:52]} (27... Ra8 $19 {has better winning chances. Hoping for ...axb4.} 28. Rhg1 axb4 29. axb4 Ra3+ 30. Kc2 {[#]} Ra2+ $3 {[%mdl 512]} 31. Nxa2 Na3+ 32. Kb3 Rxc1 33. Rxc1 Nxe4 $1 {[%mdl 512]} 34. Bxe4 (34. Kxa3 $2 Nxg3 35. Nxg3 Qxh3 $19) 34... Qxe2) 28. Nxf4 $2 {[%emt 0:02:05] Now White is beyond hope.} (28. Qxf4 $17 {is the only way for White.} Qe5 29. Qxe5 Nxe5 30. Rd1 (30. bxa5 Ra8 $17)) 28... Qe5 $19 {[%emt 0:00:01]} 29. Nfe2 {[%emt 0:01:47]} axb4 {[%emt 0:02:34]} 30. axb4 {[%emt 0:00:33]} Ra8 {[%emt 0:00:13] Chess con chili.} ({But not} 30... Nh5 $2 31. Rg5 Qf6 32. Rxh5 gxh5 33. Qf4 Qxf4 34. Nxf4 $19) 31. Rg5 {[%emt 0:02:21]} Ra3+ {[%emt 0:01:36]} 32. Qxa3 {[%emt 0:01:00]} Qxg5 {[%emt 0:00:02]} 33. Bxc4 {[%emt 0:02:51]} (33. Qc1 Qg2 34. Rg1 Qxh3 35. Rg3) 33... bxc4+ {[%emt 0:01:01]} 34. Kc2 {[%emt 0:00:46]} Qe3 {[%emt 0:00:33][%csl LRe4,LRh3]} 35. Qc1 {[%emt 0:00:40]} Qd3+ {[%emt 0:00:12]} 36. Kb2 {[%emt 0:00:04]} Rb8 {[%emt 0:00:22]} 37. Ka3 $2 {[%emt 0:01:23]} (37. Rd1 Rxb4+ 38. Ka1 Qxh3 39. Rh1) 37... Nxe4 {[%emt 0:04:21] Black is clearly winning.} 38. Rd1 {[%emt 0:00:35]} Nf2 {[%emt 0:01:01]} 39. Rxd3 {[%emt 0:01:39]} Ra8+ {[%emt 0:00:01][%mdl 64] Zwischenzug} ({Inferior is} 39... Nxd3 40. Qd1 $11) 40. Kb2 {[%emt 0:00:34]} Nxd3+ {[%emt 0:00:02]} 41. Kc2 {[%emt 0:30:14]} Nxc1 {[%emt 0:30:03]} 42. Kxc1 {[%emt 0:00:05]} Rb8 {[%emt 0:00:15]} 43. Na2 {[%emt 0:00:40]} Bxh3 {[%emt 0:00:08]} 44. Kb2 {[%emt 0:00:07]} g5 {[%emt 0:00:16][%cal Bg6g5,Bg5g4][%mdl 32]} 45. Kc3 {[%emt 0:00:06]} Bd7 {[%emt 0:00:40]} 46. Nd4 {[%emt 0:00:12]} g4 {[%emt 0:00:18] Weighted Error Value: White=0.49/Black=0.14 (very precise)} 0-1

[Event "FIDE WY-U16 Olympiad 2022"]
[Site "Nakhchivan"]
[Date "2022.10.05"]
[Round "4.20"]
[White "Sakline Mostafa, Sajid"]
[Black "Ibanez Zanetti, Sebastian Andres"]
[Result "1-0"]
[ECO "D35"]
[WhiteElo "2001"]
[BlackElo "1433"]
[Annotator "TA"]
[PlyCount "95"]
[EventDate "2022.10.02"]
[EventType "team-tourn"]
[EventCountry "AZE"]
[SourceTitle "playchess.com"]
[Source "ChessBase"]
[SourceQuality "1"]
[WhiteTeam "Bangladesh"]
[BlackTeam "Panama"]
[WhiteTeamCountry "BAN"]
[BlackTeamCountry "PAN"]
[TimeControl "40/5400+30:1800+30"]

{[%evp 15,95,23,18,10,9,4,38,38,31,36,34,26,36,14,29,10,33,24,33,14,58,64,70,82,82,75,68,58,60,70,113,113,137,139,142,140,137,126,215,146,273,221,215,204,253,254,252,116,102,110,116,59,137,35,31,74,67,82,63,57,107,98,214,158,247,260,373,359,367,356,451,447,482,464,720,689,731,704,1387,1163,2749,2497]} 1. d4 {[%emt 0:00:04]} d5 {[%emt 0:00:15]} 2. c4 {[%emt 0:00:02]} e6 {[%emt 0:00:09]} 3. Nc3 {[%emt 0:00:10]} Nf6 {[%emt 0:00:10]} 4. cxd5 {[%emt 0:00:04]} exd5 {[%emt 0:00:25]} 5. Bg5 {[%emt 0:00:05]} Be7 {[%emt 0:00:38]} 6. e3 {[%emt 0:00:12]} O-O {[%emt 0:01:24]} 7. Bd3 {[%emt 0:00:13]} h6 {[%emt 0:02:30]} 8. Bh4 {[%emt 0:01:25]} c6 {[%emt 0:01:35]} 9. Nge2 $1 {[%emt 0:00:37][%cal Bg1e2,Be2g3,Bg3f1,Bf1d2][%mdl 4] is recently more successful than 9.Qc2. D35: Queen's Gambit Declined: Exchange Variation.} Ne4 {[%emt 0:09:02]} 10. Bxe7 {[%emt 0:04:25]} Nxc3 {[%emt 0:06:00]} 11. bxc3 {[%emt 0:02:33] White is slightly better.} Qxe7 {[%emt 0:00:10]} 12. O-O {[%emt 0:00:22]} Nd7 {[%emt 0:02:43][%cal Bb8d7,Bd7f6,Bf6e4][%mdl 32]} 13. Ng3 {[%emt 0:02:50]} Nf6 {[%emt 0:02:16]} 14. Qc2 {[%emt 0:02:43]} Re8 {[%emt 0:02:23] [#]} 15. Rfe1 $146 {[%emt 0:04:12]} ({Predecessor:} 15. Rae1 Ne4 16. Ne2 Nf6 17. Nc1 Qd6 18. f3 Be6 19. e4 dxe4 20. fxe4 Qf8 21. e5 {1-0 (28) Takeda,L (1972)-Sato,L (1505) Sao Paulo 2016}) 15... Ne4 {[%emt 0:04:26]} 16. Nf1 {[%emt 0:04:17]} c5 17. f3 {[%emt 0:13:25]} c4 {[%emt 0:38:01]} 18. Bxe4 {[%emt 0:01:10]} (18. Bxc4 {is interesting.} dxc4 19. Qxe4 Qxe4 20. fxe4 Rxe4 21. Nd2) 18... dxe4 {[%emt 0:00:24]} 19. fxe4 {[%emt 0:00:38]} Qxe4 {[%emt 0:00:18]} 20. Qxe4 {[%emt 0:00:09]} Rxe4 {[%emt 0:00:04]} 21. Nd2 {[%emt 0:00:02][%csl LRc4,LRe4]} Re7 {[%emt 0:00:38]} 22. e4 {[%emt 0:01:24]} b5 {[%emt 0:00:52]} 23. a4 {[%emt 0:07:18]} Bd7 {[%emt 0:01:15]} 24. axb5 {[%emt 0:02:12]} Bxb5 {[%emt 0:00:18]} 25. Reb1 {[%emt 0:01:51]} Be8 {[%emt 0:06:42]} 26. Ra5 {[%emt 0:04:58]} Rc8 {[%emt 0:05:54]} (26... f6 $16 27. Re1 (27. Nxc4 Rxe4 28. Nd6 Re6 $14) 27... Bf7) 27. Rb4 {[%emt 0:05:45]} Rec7 {[%emt 0:03:12]} (27... f6 $16 28. Rxc4 (28. Nxc4 Bf7 $14) 28... Rxc4 29. Nxc4 Rxe4 30. Rxa7 Bh5) 28. e5 {[%emt 0:05:22]} Bd7 {[%emt 0:01:03]} 29. Ne4 {[%emt 0:02:21]} Rd8 {[%emt 0:03:31]} 30. Nd6 {[%emt 0:05:08]} f6 {[%emt 0:01:28] [#]} 31. Rb7 {[%emt 0:16:26]} ({Weaker is} 31. Nxc4 Be6 $14) ({Don't take} 31. Rxc4 $6 Rxc4 32. Nxc4 Rc8 $16) (31. d5 $1 $18) 31... Rxb7 $16 {[%emt 0:00:40]} 32. Nxb7 {[%emt 0:00:06][%mdl 4096] Endgame KRB-KRN} Rb8 {[%emt 0:00:13]} 33. Rxa7 {[%emt 0:01:52]} (33. Nd6 $16) 33... Bc6 {[%emt 0:00:20] [#]} (33... fxe5 $14 34. dxe5 Be6) 34. Nc5 {[%emt 0:02:26]} (34. Nd6 $1 $16) 34... Rb1+ {[%emt 0:00:27]} 35. Kf2 {[%emt 0:00:14] Strongly threatening e6.} fxe5 {[%emt 0:00:32]} 36. dxe5 {[%emt 0:01:56]} Rb2+ {[%emt 0:00:51]} 37. Ke3 {[%emt 0:00:09]} Bxg2 {[%emt 0:01:30]} (37... Rxg2 $14 38. Ra6 Be8) 38. e6 {[%emt 0:01:52] White is more active.} Rb8 {[%emt 0:01:03]} (38... Rb1 $16 {might work better.}) 39. Kd4 {[%emt 0:00:29]} Re8 {[%emt 0:02:33]} (39... Rb2 $16 40. Rd7 (40. Kxc4 Rd2 $16) 40... Re2) 40. Kxc4 $18 {[%emt 0:01:07]} Kf8 {[%emt 0:00:46]} (40... Rf8 {was called for.} 41. Kd4 Rf2) 41. Rf7+ {[%emt 0:33:02]} Kg8 {[%emt 0:30:34]} 42. Rc7 {[%emt 0:00:10]} Kh7 {[%emt 0:00:00]} 43. Kd4 {[%emt 0:00:00] White is clearly winning.} Kg6 {[%emt 0:00:00]} 44. Ke5 {[%emt 0:00:00]} Rd8 {[%emt 0:00:00]} (44... Bh3 $142 45. c4 Bg4) 45. c4 {[%emt 0:00:00]} Rd1 {[%emt 0:00:00]} 46. Nd7 {[%emt 0:00:00]} Bh3 {[%emt 0:00:00]} 47. Nf8+ {[%emt 0:00:00]} Kg5 {[%emt 0:00:00]} 48. Rxg7+ {[%emt 0:00:00] Weighted Error Value: White=0.20 (precise) /Black=0.36} 1-0

[Event "FIDE WY-U16 Olympiad 2022"]
[Site "Nakhchivan"]
[Date "2022.10.05"]
[Round "4.20"]
[White "Shokirjonova, Barchinoy"]
[Black "Boramanikar Tanisha S"]
[Result "0-1"]
[ECO "E18"]
[WhiteElo "1786"]
[BlackElo "1808"]
[Annotator "NA RC COMBH"]
[PlyCount "116"]
[EventDate "2022.10.02"]
[EventType "team-tourn"]
[EventCountry "AZE"]
[SourceTitle "playchess.com"]
[Source "ChessBase"]
[SourceQuality "1"]
[WhiteTeam "Uzbekistan"]
[BlackTeam "India"]
[WhiteTeamCountry "UZB"]
[BlackTeamCountry "IND"]
[TimeControl "40/5400+30:1800+30"]

1. d4 {[%emt 0:00:11]} Nf6 {[%emt 0:00:15]} 2. c4 {[%emt 0:00:14]} e6 {[%emt 0:00:04]} 3. Nf3 {[%emt 0:00:25]} b6 {[%emt 0:00:22]} 4. g3 {[%emt 0:00:08]} Bb7 {[%emt 0:00:35]} 5. Bg2 {[%emt 0:00:06]} Be7 {[%emt 0:00:21]} 6. O-O {[%emt 0:00:35]} O-O {[%emt 0:00:54]} 7. Nc3 {[%emt 0:01:18]} d5 {[%emt 0:02:20]} 8. cxd5 {[%emt 0:02:39]} exd5 {[%emt 0:04:31]} 9. Ne5 {[%emt 0:10:23]} Nbd7 {[%emt 0:01:58]} 10. Qa4 {[%emt 0:03:04]} Nb8 {[%emt 0:29:41]} 11. Rd1 {[%emt 0:13:36]} a6 {[%emt 0:09:46]} 12. Be3 {[%emt 0:12:27]} Qd6 {[%emt 0:08:52]} 13. Rac1 {[%emt 0:20:02]} b5 {[%emt 0:11:33]} 14. Qc2 {[%emt 0:01:23]} Nbd7 {[%emt 0:06:45]} 15. Bf4 {[%emt 0:11:22]} Qe6 {[%emt 0:01:53]} 16. Nf3 {[%emt 0:09:03]} Nh5 {[%emt 0:05:59]} 17. Bg5 {[%emt 0:05:57]} Bd6 {[%emt 0:01:15]} 18. Be3 {[%emt 0:04:12]} h6 {[%emt 0:02:33]} 19. Nh4 {[%emt 0:00:23]} Nb6 {[%emt 0:03:53]} 20. b3 {[%emt 0:01:44]} Ba3 {[%emt 0:01:33]} 21. Rb1 {[%emt 0:00:33]} Bb4 {[%emt 0:01:47]} 22. a4 {[%emt 0:00:46]} Qc6 {[%emt 0:02:27]} 23. Rdc1 {[%emt 0:00:36]} Ba3 {[%emt 0:00:35]} 24. Nxd5 {[%emt 0:00:35]} Qxc2 {[%emt 0:00:13]} 25. Rxc2 {[%emt 0:00:09]} Bxd5 {[%emt 0:00:28]} 26. axb5 {[%emt 0:00:33]} axb5 {[%emt 0:00:12]} 27. Rxc7 {[%emt 0:00:20]} Rfc8 {[%emt 0:00:44]} 28. Rxc8+ {[%emt 0:00:52]} Rxc8 {[%emt 0:00:07]} 29. Ra1 {[%emt 0:00:24]} b4 {[%emt 0:00:42]} 30. Nf5 {[%emt 0:00:13]} Kf8 {[%emt 0:00:11]} 31. g4 {[%emt 0:00:20]} Nf6 {[%emt 0:00:16]} 32. Bf4 {[%emt 0:00:16]} Rc3 {[%emt 0:01:27]} 33. Bd6+ {[%emt 0:00:27]} Kg8 {[%emt 0:00:30]} 34. Ne7+ {[%emt 0:00:10]} Kh7 {[%emt 0:00:15]} 35. Nxd5 {[%emt 0:00:16]} Nbxd5 {[%emt 0:00:43]} 36. e4 {[%emt 0:00:20]} Nb6 {[%emt 0:00:19]} 37. e5 {[%emt 0:01:45]} Nfd5 {[%emt 0:00:31]} 38. Bc5 {[%emt 0:00:53]} Rxb3 {[%emt 0:00:56]} 39. Be4+ {[%emt 0:00:27]} g6 {[%emt 0:00:25]} 40. h4 {[%emt 0:00:27]} Rc3 {[%emt 0:01:06]} 41. h5 {[%emt 0:30:22]} Rc1+ {[%emt 0:31:29]} 42. Rxc1 {[%emt 0:00:24]} Bxc1 {[%emt 0:00:03]} 43. hxg6+ {[%emt 0:01:00]} fxg6 {[%emt 0:00:15]} 44. e6 {[%emt 0:00:00]} Bg5 {[%emt 0:00:00]} 45. f4 {[%emt 0:00:00]} Bd8 {[%emt 0:00:00]} 46. f5 {[%emt 0:00:00]} gxf5 {[%emt 0:00:00]} 47. gxf5 {[%emt 0:00:00]} Kg7 {[%emt 0:00:00]} 48. Kf1 {[%emt 0:00:00]} Kf6 {[%emt 0:00:00]} 49. Ke1 {[%emt 0:00:00]} Be7 {[%emt 0:00:00]} 50. Kd2 {[%emt 0:00:00]} h5 {[%emt 0:00:00]} 51. Kc2 {[%emt 0:00:00]} Nc4 {[%emt 0:00:00]} 52. Bd3 {[%emt 0:00:53]} Nce3+ {[%emt 0:00:00]} 53. Kb3 {[%emt 0:01:16]} Nxf5 {[%emt 0:00:00]} 54. Bxe7+ {[%emt 0:02:54]} Nfxe7 {[%emt 0:00:00]} 55. Be2 {[%emt 0:00:11]} h4 {[%emt 0:00:00]} 56. Bg4 {[%emt 0:00:05]} Nf5 {[%emt 0:00:00]} 57. Bh3 {[%emt 0:00:20]} Nxd4+ {[%emt 0:00:00]} 58. Kc4 {[%emt 0:00:16]} Nxe6 {[%emt 0:00:00]} 0-1

[Event "FIDE WY-U16 Olympiad 2022"]
[Site "Nakhchivan"]
[Date "2022.10.05"]
[Round "4.21"]
[White "Orozbaev, Eldiar"]
[Black "Hidalgo Diaz, Daniel"]
[Result "0-1"]
[ECO "C07"]
[WhiteElo "2344"]
[BlackElo "2315"]
[Annotator "TA"]
[PlyCount "103"]
[EventDate "2022.10.02"]
[EventType "team-tourn"]
[EventCountry "AZE"]
[SourceTitle "playchess.com"]
[Source "ChessBase"]
[SourceQuality "1"]
[WhiteTeam "Kyrgyzstan"]
[BlackTeam "Cuba"]
[WhiteTeamCountry "KGZ"]
[BlackTeamCountry "CUB"]
[TimeControl "40/5400+30:1800+30"]

{[%evp 14,103,11,10,21,18,12,10,25,26,36,12,40,27,32,33,22,-113,-116,-104,-104,-137,-125,-86,-116,-89,-29,-38,-7,-1,0,0,0,0,13,-30,-24,-30,-6,-56,9,10,26,0,18,17,19,0,0,0,0,0,0,0,23,23,16,16,55,0,0,0,0,0,0,0,0,0,0,0,0,0,0,0,0,-45,0,-40,0,-45,0,-36,-46,-682,-631,-29973,-29974,-29973,-29972,-29974,-29974,-29987]} 1. e4 {[%emt 0:00:01]} e6 {[%emt 0:00:06]} 2. d4 {[%emt 0:00:04]} d5 {[%emt 0:00:05]} 3. Nd2 {[%emt 0:00:04]} c5 {[%emt 0:00:07]} 4. Ngf3 {[%emt 0:00:05]} cxd4 {[%emt 0:00:07]} 5. Nxd4 {[%emt 0:00:48]} Nc6 {[%emt 0:00:08]} 6. Bb5 {[%emt 0:01:25]} Bd7 {[%emt 0:00:09]} 7. Nxc6 {[%emt 0:00:05]} bxc6 {[%emt 0:00:23]} 8. Bd3 {[%emt 0:00:07]} Bd6 {[%emt 0:00:07] C07: French Tarrasch: 3...c5, 4 Ngf3 and 4 exd5 Qxd5.} 9. Qe2 {[%emt 0:00:26]} Qc7 {[%emt 0:00:38] 9...e5 gains popularity.} 10. Nf3 {[%emt 0:00:33]} f6 {[%emt 0:01:17][%cal Bf7f6,Bf6f5][%mdl 32] The position is equal.} 11. c4 {[%emt 0:14:09]} Ne7 {[%emt 0:00:47]} 12. O-O {[%emt 0:00:06]} O-O {[%emt 0:00:44] [#]} 13. Qc2 $146 {[%emt 0:06:05]} ({Predecessor:} 13. cxd5 cxd5 14. exd5 Nxd5 15. Bd2 Qb6 16. b3 Rfe8 17. Rfe1 Rad8 18. Qe4 g6 19. Qh4 {½-½ (46) Azarov,S (2604)-Roshka,Y (2478) Cattolica 2022}) 13... dxe4 {[%emt 0:15:12]} 14. Bxe4 {[%emt 0:00:06]} f5 {[%emt 0:00:27]} 15. Bd3 {[%emt 0:00:22]} (15. c5 $1 $11 Bxh2+ 16. Nxh2 fxe4 17. Qxe4) 15... c5 $17 {[%emt 0:00:19]} 16. b4 {[%emt 0:14:07] [#]} e5 $1 {[%emt 0:08:31][%cal Be6e5,Be5e4][%mdl 32]} 17. bxc5 {[%emt 0:09:42]} Bxc5 {[%emt 0:00:10] Hoping for ...e4.} 18. Nd2 {[%emt 0:03:28]} e4 {[%emt 0:14:48]} 19. Be2 {[%emt 0:00:01]} Rf6 {[%emt 0:00:02]} (19... a5 $17 {...a4 is the strong threat.} 20. Nb3 Bd6) 20. Nb3 $11 {[%emt 0:01:04]} Ba4 {[%emt 0:00:02]} (20... Bd6 $5 {[%cal Rd6h2]} 21. h3 Bh2+ 22. Kh1 Be5 $15) 21. g3 {[%emt 0:06:23]} Rg6 {[%emt 0:15:49][%cal Og6g3] aiming for ...Rxg3+!} 22. Be3 {[%emt 0:02:51]} Bxe3 {[%emt 0:11:59]} 23. fxe3 {[%emt 0:00:04]} Rf8 {[%emt 0:00:09][%cal Og6g3]} 24. c5 {[%emt 0:04:49]} Kh8 {[%emt 0:00:30][%cal Og6g3]} 25. Bc4 {[%emt 0:12:32][%cal Oc2e4]} h5 {[%emt 0:00:45]} 26. Qe2 {[%emt 0:00:15]} (26. Rad1 $11) 26... Bxb3 {[%emt 0:02:25]} (26... h4 $1 $15 27. Rf4 hxg3 28. Rh4+ Rh6 29. Rxh6+ gxh6) 27. axb3 {[%emt 0:00:23]} Qxc5 {[%emt 0:00:08]} 28. Qxh5+ {[%emt 0:00:09]} Rh6 {[%emt 0:00:04]} 29. Qg5 {[%emt 0:01:15]} Rff6 {[%emt 0:02:52]} 30. Qf4 {[%emt 0:00:35]} Kh7 {[%emt 0:00:26]} 31. Rfc1 {[%emt 0:04:00][%cal Oc4g8,Bf1c1,Bc1c2,Bc2f2][%mdl 32]} Qb4 {[%emt 0:02:01]} 32. Rc2 {[%emt 0:02:39] Inhibits Qd2.} a6 {[%emt 0:03:39][%cal Ba7a6,Ba6a5,Ba5a4][%mdl 32]} 33. Rd1 {[%emt 0:03:01]} Rd6 {[%emt 0:13:09]} 34. Rxd6 {[%emt 0:00:04]} Rxd6 {[%emt 0:00:03]} 35. Rf2 {[%emt 0:00:14]} a5 {[%emt 0:00:27]} 36. Qe5 {[%emt 0:02:12]} (36. g4 $1 $14) 36... Rf6 {[%emt 0:00:21]} 37. Qa1 {[%emt 0:02:32]} a4 {[%emt 0:02:16]} 38. Qd4 {[%emt 0:05:06][%cal Oc4g8]} Nc6 {[%emt 0:01:01]} 39. Qd5 {[%emt 0:00:36]} Ne7 {[%emt 0:00:54] Inhibits Qg8+.} 40. Qd4 {[%emt 0:00:36][%cal Oc4g8] And now Bg8+! would win.} Nc6 {[%emt 0:00:26]} 41. Qd5 {[%emt 0:31:35]} Ne7 {[%emt 0:30:27] Against Qg8+} 42. Qd4 {[%emt 0:04:41][%cal Oc4g8]} Nc6 {[%emt 0:00:01]} 43. Qd1 {[%emt 0:01:14] Strongly threatening Qh5+.} Ne7 {[%emt 0:00:56]} 44. Kg2 {[%emt 0:00:00]} Rd6 {[%emt 0:00:00]} 45. Qh5+ {[%emt 0:00:00]} Rh6 {[%emt 0:00:00]} 46. Qd1 {[%emt 0:00:00]} a3 {[%emt 0:00:00]} (46... Qc5 $5 {[%cal Ra4b3]}) 47. Qd7 {[%emt 0:00:00]} Qc5 $36 {[%emt 0:00:00][%cal Oc5e3][%mdl 2048] Black has good play.} 48. Qe8 $2 {[%emt 0:00:00][%mdl 8192] [#] This move loses the game for White.} (48. Qd4 $15 Qxd4 49. exd4) 48... Qxe3 $1 $19 {[%emt 0:00:00][%cal Oh6h2] Threatens to win with ...Rxh2+!} 49. Qxe7 {[%emt 0:00:00] [#] Black must now prevent Re2.} (49. Re2 Qf3+) 49... Rxh2+ $3 {[%emt 0:00:00][%mdl 576] Deflection, Decoy. Black mates.} 50. Kxh2 {[%emt 0:00:00]} Qxf2+ {[%emt 0:00:00]} 51. Kh3 {[%emt 0:00:00]} Qg1 {[%emt 0:00:00][%cal Rg1h1]} 52. Kh4 {[%emt 0:00:00] Weighted Error Value: White=0.31/Black=0.10 (very precise)} 0-1